bitfinex/quotes_SOLUSD_20240714
["timestamp","ask_amount","ask_price","bid_price","bid_amount"]
[1720939223098,1.72159373,145.27,145.19,12.05787416]
[1720939223353,11.18,145.24,145.19,12.05787416]
[1720939223535,11.18,145.25,145.19,0.87787416]
[1720939223742,1.72148909,145.24,145.2,11.18]
[1720939224463,1.72148909,145.24,145.19,0.87787416]
[1720939224960,12.90148909,145.24,145.19,12.05787416]
[1720939225152,11.18,145.24,145.19,12.05787416]
[1720939225540,1.72149222,145.27,145.19,12.05787416]
[1720939225739,11.18,145.25,145.19,12.05787416]
[1720939225946,12.90148776,145.24,145.19,0.87787416]
[1720939226144,11.18,145.24,145.19,0.87787416]
[1720939226347,11.18,145.24,145.19,12.05787416]
[1720939226544,11.18,145.22,145.18,0.87776795]
[1720939226971,1.72175491,145.21,145.18,0.87776795]
[1720939227139,11.18,145.22,145.18,0.87776795]
[1720939227543,11.18,145.22,145.17,0.87776795]
[1720939227754,1.72177803,145.21,145.17,0.87776795]
[1720939227965,12.90177803,145.21,145.17,0.87776795]
[1720939228167,11.18,145.21,145.17,0.87776795]
[1720939230266,1.72179312,145.24,145.17,0.87776795]
[1720939230583,21.72177039,145.25,145.18,0.87770748]
[1720939230774,11.18,145.24,145.19,11.18]
[1720939230941,12.90177039,145.25,145.2,12.0577058]
[1720939231142,12.90177039,145.25,145.21,0.87770863]
[1720939231380,11.18,145.24,145.21,0.87772241]
[1720939231683,12.90177039,145.25,145.2,12.0577133]
[1720939231885,12.90177039,145.25,145.21,0.87741111]
[1720939232172,12.90177039,145.25,145.2,11.18]
[1720939233861,11.18,145.24,145.19,11.18]
[1720939234067,11.18,145.24,145.2,0.87751741]
[1720939234390,11.18,145.24,145.16,45.8682462]
[1720939234391,1.7215008,145.23,145.16,45.8682462]
[1720939234571,1.7215008,145.23,145.18,11.18]
[1720939234572,12.9015008,145.23,145.18,11.18]
[1720939234774,11.18,145.22,145.17,0.8782384]
[1720939234963,11.18,145.22,145.18,0.87838979]
[1720939235270,1.72174736,145.21,145.18,0.87838979]
[1720939235476,11.18,145.2,145.16,1.74662204]
[1720939235661,11.18,145.21,145.16,12.92662204]
[1720939236057,1.72182248,145.23,145.16,12.92662204]
[1720939236256,11.18,145.21,145.16,12.92662204]
[1720939236970,1.72182248,145.23,145.16,12.92662204]
[1720939237175,11.18,145.21,145.16,12.92662204]
[1720939237379,11.18,145.22,145.17,11.18]
[1720939237559,1.72182248,145.23,145.18,0.87853042]
[1720939237767,11.18,145.23,145.18,0.87853042]
[1720939238086,11.18,145.23,145.18,12.05853042]
[1720939238576,12.90156795,145.22,145.16,1.74619146]
[1720939238760,11.18,145.22,145.17,11.18]
[1720939239076,11.18,145.22,145.18,0.87782431]
[1720939239280,11.18,145.23,145.18,12.05782431]
[1720939240080,11.18,145.23,145.19,0.87776419]
[1720939240968,1.72169257,145.24,145.19,0.87776419]
[1720939241161,1.72169257,145.24,145.19,12.05776419]
[1720939241162,11.18,145.24,145.19,12.05776419]
[1720939241361,11.18,145.24,145.2,0.87785868]
[1720939243185,12.9015355,145.23,145.2,0.87785868]
[1720939243394,11.18,145.23,145.19,0.87786925]
[1720939244760,6.0071,145.29,145.17,12.05813706]
[1720939244761,12.9015385,145.22,145.17,12.05813706]
[1720939244959,11.18,145.22,145.18,0.8783071]
[1720939246059,1.72174765,145.21,145.18,0.8783071]
[1720939246264,12.90174765,145.21,145.18,0.8783071]
[1720939246464,11.18,145.21,145.17,0.8783071]
[1720939247487,11.18,145.2,145.17,0.8783071]
[1720939248095,11.18,145.2,145.16,0.8682462]
[1720939250058,11.18,145.2,145.16,1.74708992]
[1720939250465,11.18,145.21,145.16,12.92708992]
[1720939250664,1.72194596,145.2,145.16,12.92708992]
[1720939251193,12.90194596,145.2,145.16,1.74708992]
[1720939251367,11.18,145.2,145.16,1.74708992]
[1720939252182,1.72194808,145.24,145.16,1.74708992]
[1720939252381,11.18,145.21,145.16,12.92708992]
[1720939252568,1.72194453,145.2,145.16,12.92708992]
[1720939252771,1.72194453,145.24,145.17,11.18]
[1720939252989,11.18,145.22,145.18,0.87817086]
[1720939253373,1.72166195,145.23,145.18,0.87817086]
[1720939253568,12.90169426,145.23,145.18,12.05817086]
[1720939253890,12.90169426,145.23,145.19,0.87799119]
[1720939254274,1.7215883,145.26,145.19,0.87799119]
[1720939254476,11.18,145.25,145.2,11.18]
[1720939254780,1.72128379,145.27,145.21,12.05726328]
[1720939254988,11.18,145.26,145.21,12.05726328]
[1720939255371,1.72121991,145.31,145.21,12.05726328]
[1720939255567,11.18,145.26,145.21,12.05726328]
[1720939255779,1.72121991,145.31,145.22,11.18]
[1720939255997,1.72121991,145.31,145.23,0.87677582]
[1720939256167,11.18,145.27,145.22,11.18]
[1720939256370,11.18,145.27,145.23,0.87660344]
[1720939256688,1.72121991,145.31,145.23,0.87660344]
[1720939256893,1.72121991,145.31,145.24,12.05670837]
[1720939257076,11.18,145.29,145.25,0.8765443]
[1720939257398,11.18,145.28,145.25,0.8765443]
[1720939257982,1.72098412,145.3,145.25,0.8765443]
[1720939258174,11.18,145.28,145.25,0.8765443]
[1720939258373,1.72098429,145.29,145.25,0.8765443]
[1720939258596,11.18,145.28,145.24,11.18]
[1720939258773,1.72098411,145.31,145.25,17.01164404]
[1720939258972,11.18,145.3,145.25,28.19164404]
[1720939259284,11.18,145.3,145.26,0.876031]
[1720939259471,1.53304749,145.33,145.26,0.876031]
[1720939259670,11.18,145.3,145.26,0.876031]
[1720939260893,1.72078906,145.32,145.26,0.876031]
[1720939261097,11.18,145.3,145.26,0.876031]
[1720939263405,11.18,145.3,145.27,0.87597069]
[1720939264174,11.18,145.3,145.25,27.3151]
[1720939266984,1.72078906,145.32,145.25,27.3151]
[1720939267297,12.90067436,145.31,145.26,12.05580839]
[1720939267499,11.18,145.31,145.27,0.87579956]
[1720939268590,1.72067391,145.33,145.27,12.05579956]
[1720939268792,1.7205749,145.32,145.27,12.05579956]
[1720939268993,1.72052112,145.33,145.28,11.18]
[1720939269295,1.72052112,145.33,145.29,12.05527546]
[1720939269494,1.72052112,145.33,145.29,11.18]
[1720939269799,1.72045309,145.33,145.3,0.8752696]
[1720939269994,1.7204011,145.37,145.3,0.8752696]
[1720939270208,11.18,145.36,145.31,11.18]
[1720939270380,1.7204011,145.37,145.32,0.87449257]
[1720939270715,11.18,145.36,145.32,0.87449257]
[1720939271008,12.90014221,145.35,145.3,26.6707]
[1720939271173,11.18,145.35,145.3,26.6707]
[1720939271374,11.18,145.33,145.3,15.4907]
[1720939273478,1.72035879,145.38,145.3,15.4907]
[1720939273788,11.18,145.35,145.3,26.6707]
[1720939274888,11.18,145.35,145.31,0.87468008]
[1720939275689,1.72035879,145.38,145.31,0.87468008]
[1720939275889,11.18,145.35,145.31,0.87468008]
[1720939277022,89.72,145.39,145.3,15.4907]
[1720939277023,12.90012977,145.34,145.3,15.4907]
[1720939277319,11.18,145.34,145.3,16.36501307]
[1720939277486,11.18,145.33,145.3,16.36501307]
[1720939278308,11.18,145.33,145.3,15.4907]
[1720939279954,11.18,145.33,145.29,0.87503111]
[1720939280118,11.18,145.33,145.28,11.18]
[1720939280436,11.18,145.34,145.29,12.05504264]
[1720939280641,1.72031378,145.38,145.3,0.87487951]
[1720939280816,11.18,145.35,145.3,12.05487951]
[1720939281017,1.72026149,145.37,145.31,0.87480974]
[1720939281219,11.18,145.35,145.31,0.87480974]
[1720939282037,12.90018909,145.34,145.29,11.18]
[1720939282214,11.18,145.34,145.3,0.87465452]
[1720939283114,11.18,145.34,145.29,11.18]
[1720939283315,11.18,145.34,145.3,0.87475601]
[1720939283631,11.18,145.35,145.3,12.05475601]
[1720939284238,11.18,145.35,145.31,0.87453023]
[1720939284442,1.72014502,145.34,145.3,11.18]
[1720939284626,12.90014502,145.34,145.29,11.18]
[1720939284820,11.18,145.34,145.29,11.18]
[1720939285120,11.18,145.34,145.26,21.5888]
[1720939285320,11.18,145.33,145.28,11.18]
[1720939285920,11.18,145.33,145.26,21.5888]
[1720939286139,12.90032615,145.32,145.27,11.18]
[1720939286342,11.18,145.32,145.27,11.18]
[1720939286911,1.72049937,145.38,145.27,11.18]
[1720939287237,21.72049937,145.38,145.28,11.18]
[1720939287639,11.18,145.34,145.29,11.18]
[1720939288134,1.72025081,145.33,145.26,21.5888]
[1720939288322,11.18,145.34,145.29,11.18]
[1720939288639,11.18,145.35,145.3,12.05474061]
[1720939288840,1.72023974,145.34,145.31,0.87468041]
[1720939289223,11.18,145.35,145.31,0.87468041]
[1720939289420,1.72023831,145.34,145.31,0.87468041]
[1720939290624,1.72023716,145.37,145.31,0.87468041]
[1720939290825,11.18,145.34,145.27,0.87453104]
[1720939291134,11.18,145.34,145.29,11.18]
[1720939292025,1.72024232,145.33,145.28,0.87476376]
[1720939292226,11.18,145.31,145.27,0.87539336]
[1720939292432,11.18,145.3,145.27,0.87539336]
[1720939292940,11.18,145.31,145.27,0.87539336]
[1720939295539,1.7205875,145.3,145.26,32.7688]
[1720939295923,12.9005875,145.3,145.26,21.5888]
[1720939296123,11.18,145.3,145.26,21.5888]
[1720939300043,11.18,145.3,145.22,30.72475632]
[1720939300242,11.18,145.29,145.24,11.18]
[1720939302145,11.18,145.29,145.22,30.72475632]
[1720939302353,11.18,145.28,145.23,56.18]
[1720939302657,11.18,145.26,145.22,30.72475632]
[1720939302951,11.18,145.24,145.2,7.72323235]
[1720939303254,11.18,145.24,145.19,33.3864]
[1720939303630,1.72137849,145.28,145.19,33.3864]
[1720939303833,11.18,145.24,145.19,33.3864]
[1720939304550,11.18,145.24,145.19,22.2064]
[1720939304758,11.18,145.21,145.16,8.59147855]
[1720939304928,11.18,145.2,145.16,8.59147855]
[1720939305122,11.18,145.2,145.16,0.8682462]
[1720939305929,11.18,145.19,145.16,0.8682462]
[1720939306145,11.18,145.19,145.16,1.74726851]
[1720939306547,11.18,145.19,145.16,0.8682462]
[1720939307049,11.18,145.2,145.16,0.8682462]
[1720939308246,11.18,145.2,145.16,1.74714856]
[1720939309329,1.72195803,145.21,145.16,0.8682462]
[1720939309330,11.18,145.19,145.16,0.8682462]
[1720939310140,11.18,145.2,145.16,0.8682462]
[1720939310544,11.18,145.2,145.16,1.74715575]
[1720939310744,11.18,145.2,145.16,0.8682462]
[1720939311154,11.18,145.2,145.16,1.74719355]
[1720939311449,11.18,145.18,145.16,0.8682462]
[1720939312031,12.90221597,145.17,145.16,0.8682462]
[1720939312255,11.18,145.17,145.16,0.8682462]
[1720939314450,1.72240017,145.21,145.16,0.8682462]
[1720939314647,11.18,145.17,145.16,0.8682462]
[1720939320174,1.72240213,145.2,145.16,0.8682462]
[1720939320345,11.18,145.17,145.16,0.8682462]
[1720939321082,11.18,145.19,145.16,0.8682462]
[1720939321587,12.902008,145.18,145.16,0.8682462]
[1720939321751,12.90212841,145.17,145.16,0.8682462]
[1720939321954,11.18,145.17,145.16,0.8682462]
[1720939322977,11.18,145.18,145.16,0.8682462]
[1720939323210,12.90215465,145.17,145.16,0.8682462]
[1720939323345,11.18,145.17,145.16,0.8682462]
[1720939331513,32.90256471,145.17,145.16,0.8682462]
[1720939335587,21.72256471,145.17,145.16,0.8682462]
[1720939335989,12.90256471,145.17,145.16,0.8682462]
[1720939336198,11.18,145.17,145.16,0.8682462]
[1720939337600,1.72243315,145.21,145.16,0.8682462]
[1720939337803,1.72236107,145.2,145.16,0.8682462]
[1720939338115,11.18,145.17,145.16,0.8682462]
[1720939338481,11.18,145.18,145.16,0.8682462]
[1720939338691,1.72229015,145.17,145.16,0.8682462]
[1720939339010,12.90229015,145.17,145.16,0.8682462]
[1720939339216,11.18,145.17,145.16,0.8682462]
[1720939339709,1.72230255,145.2,145.16,0.8682462]
[1720939339910,11.18,145.17,145.16,0.8682462]
[1720939341703,1.72230255,145.2,145.16,0.8682462]
[1720939341909,11.18,145.19,145.16,0.8682462]
[1720939342308,1.72230255,145.2,145.16,0.8682462]
[1720939342510,1.72199422,145.21,145.16,0.8682462]
[1720939342812,11.18,145.21,145.17,0.8787408]
[1720939343180,11.18,145.19,145.16,0.8682462]
[1720939344332,1.72193203,145.24,145.17,0.87869862]
[1720939344510,19.05314472,145.27,145.18,12.05822491]
[1720939344511,11.18,145.23,145.18,12.05822491]
[1720939344681,11.18,145.24,145.19,16.01]
[1720939344992,11.18,145.24,145.2,0.87768499]
[1720939345193,11.18,145.24,145.2,0.87748472]
[1720939345779,11.18,145.24,145.21,0.87742429]
[1720939346096,1.72137671,145.23,145.19,16.88748628]
[1720939346408,11.18,145.23,145.19,16.88748628]
[1720939346799,1.72159052,145.26,145.19,16.88748628]
[1720939347021,11.18,145.23,145.19,16.88748628]
[1720939348503,11.18,145.24,145.19,28.06748628]
[1720939350203,1.72159052,145.26,145.19,28.06748628]
[1720939350413,11.18,145.24,145.19,28.06748628]
[1720939350610,11.18,145.24,145.19,27.19]
[1720939350913,11.18,145.21,145.16,16.8782462]
[1720939351233,11.18,145.2,145.16,16.8782462]
[1720939352607,1.72139183,145.23,145.16,16.8782462]
[1720939352814,11.18,145.2,145.16,16.8782462]
[1720939355008,1.72188431,145.24,145.17,11.18]
[1720939355217,11.18,145.22,145.18,0.87819296]
[1720939355438,11.18,145.23,145.18,12.05819296]
[1720939356338,1.72166152,145.22,145.19,0.87813247]
[1720939356645,12.90166152,145.22,145.19,0.87813247]
[1720939356817,11.18,145.22,145.19,0.87813247]
[1720939357136,11.18,145.22,145.17,11.18]
[1720939357635,1.7216617,145.25,145.19,11.18]
[1720939357840,12.90152403,145.24,145.2,0.39063916]
[1720939358051,1.72149051,145.26,145.2,0.39063916]
[1720939358277,1.72149051,145.26,145.2,11.57063916]
[1720939358425,11.18,145.25,145.21,0.39061225]
[1720939359228,11.18,145.25,145.2,11.18]
[1720939359517,12.90130387,145.24,145.19,11.18]
[1720939359717,11.18,145.24,145.19,11.18]
[1720939360023,11.18,145.25,145.2,0.87766838]
[1720939360334,11.18,145.25,145.21,0.87732983]
[1720939360534,1.72131261,145.24,145.19,11.18]
[1720939360731,12.90131261,145.24,145.2,0.87739025]
[1720939361042,11.18,145.25,145.2,12.05739025]
[1720939361219,11.18,145.25,145.21,0.87732982]
[1720939361822,1.72140761,145.29,145.21,12.05732982]
[1720939362029,11.18,145.26,145.21,12.05732982]
[1720939362879,1.72121428,145.28,145.21,12.05732982]
[1720939363153,11.18,145.26,145.21,12.05732982]
[1720939363450,1.72113381,145.29,145.22,27.8104]
[1720939363651,11.18,145.27,145.23,0.87667647]
[1720939363951,11.18,145.28,145.24,0.8766161]
[1720939364631,1.72102673,145.31,145.24,0.8766161]
[1720939364845,11.18,145.29,145.24,12.0566161]
[1720939365045,11.18,145.28,145.24,12.0566161]
[1720939365227,11.18,145.29,145.25,0.87636552]
[1720939365441,11.18,145.29,145.24,11.18]
[1720939365442,1.72091356,145.28,145.24,11.18]
[1720939365953,12.90091356,145.28,145.23,11.18]
[1720939366253,11.18,145.28,145.23,11.18]
[1720939366967,11.18,145.27,145.22,27.8104]
[1720939367253,12.90098368,145.26,145.22,16.6304]
[1720939367461,11.18,145.26,145.22,16.6304]
[1720939367639,11.18,145.26,145.22,17.50759141]
[1720939367825,11.18,145.27,145.22,28.68759141]
[1720939369633,1.72117778,145.26,145.22,17.50759141]
[1720939369838,1.72117778,145.26,145.23,0.87693811]
[1720939370759,12.90117778,145.26,145.22,16.6304]
[1720939370935,11.18,145.26,145.22,16.6304]
[1720939371136,11.18,145.26,145.22,17.02499412]
[1720939371356,11.18,145.26,145.22,16.6304]
[1720939371553,11.18,145.25,145.22,16.6304]
[1720939372343,11.18,145.26,145.22,16.6304]
[1720939372654,11.18,145.27,145.23,0.87711284]
[1720939373557,1.7211657,145.26,145.23,0.87711284]
[1720939374146,1.721228,145.31,145.23,0.87711284]
[1720939374461,11.18,145.27,145.22,27.8104]
[1720939376139,11.18,145.27,145.23,0.87682106]
[1720939376548,1.72115054,145.3,145.24,0.87676099]
[1720939376745,11.18,145.28,145.24,0.87676099]
[1720939376946,1.72115054,145.3,145.24,0.87676099]
[1720939377448,1.72097544,145.32,145.24,0.87676099]
[1720939377645,11.18,145.29,145.24,12.05676099]
[1720939381663,1.72088411,145.32,145.26,11.18]
[1720939381966,11.18,145.3,145.25,51.6596]
[1720939382262,11.18,145.3,145.25,17.8396]
[1720939385566,11.18,145.31,145.26,11.18]
[1720939385962,11.18,145.31,145.27,11.18]
[1720939386267,1.72058409,145.34,145.28,0.87558566]
[1720939386466,11.18,145.31,145.28,0.87558566]
[1720939386642,11.18,145.31,145.26,11.18]
[1720939387042,12.90066428,145.3,145.25,17.8396]
[1720939387266,11.18,145.3,145.25,17.8396]
[1720939388570,12.90071671,145.29,145.25,6.6596]
[1720939388865,11.18,145.29,145.25,6.6596]
[1720939389768,1.72087413,145.31,145.25,6.6596]
[1720939389945,1.72087413,145.31,145.25,17.8396]
[1720939390149,1.72071172,145.33,145.25,17.8396]
[1720939390357,11.18,145.3,145.25,17.8396]
[1720939390558,1.72077863,145.32,145.25,17.8396]
[1720939390758,11.18,145.3,145.25,17.8396]
[1720939392380,11.18,145.3,145.26,0.87588518]
[1720939392550,11.18,145.31,145.26,0.87588518]
[1720939392951,1.72070927,145.3,145.26,0.87588518]
[1720939393855,12.90070927,145.3,145.26,0.87588518]
[1720939394064,11.18,145.3,145.26,0.87588518]
[1720939394876,11.18,145.29,145.26,0.87588518]
[1720939395070,11.18,145.29,145.25,6.6596]
[1720939395560,11.18,145.28,145.25,6.6596]
[1720939396177,1.72088621,145.31,145.22,16.6304]
[1720939396359,11.18,145.27,145.22,27.8104]
[1720939396568,11.18,145.26,145.22,16.6304]
[1720939396877,11.18,145.25,145.22,16.6304]
[1720939398065,12.90136469,145.24,145.22,16.6304]
[1720939398369,11.18,145.23,145.18,33.5382]
[1720939398577,11.18,145.22,145.18,22.3582]
[1720939400177,1.72162843,145.24,145.19,0.87813378]
[1720939400366,21.72156116,145.27,145.2,11.18]
[1720939400555,11.18,145.25,145.21,0.87756881]
[1720939401455,1.72126016,145.31,145.21,0.87756881]
[1720939401657,11.18,145.26,145.21,11.18]
[1720939401856,11.18,145.25,145.21,11.18]
[1720939402466,11.18,145.25,145.2,11.18]
[1720939404371,11.18,145.26,145.21,11.18]
[1720939404558,1.72120156,145.3,145.18,22.3582]
[1720939404763,15.6431,145.32,145.23,27.7172]
[1720939404764,11.18,145.28,145.23,27.7172]
[1720939404970,11.18,145.26,145.23,16.5372]
[1720939406368,11.18,145.25,145.21,11.18]
[1720939406770,11.18,145.25,145.21,0.87715148]
[1720939407360,11.18,145.24,145.21,0.87715148]
[1720939407561,11.18,145.24,145.2,16.5372]
[1720939407562,11.18,145.22,145.2,16.5372]
[1720939409283,11.18,145.22,145.18,6.6534]
[1720939410179,11.18,145.2,145.17,16.5372]
[1720939410379,12.90194703,145.19,145.16,0.8682462]
[1720939410580,11.18,145.19,145.16,0.8682462]
[1720939410981,11.18,145.2,145.16,0.8682462]
[1720939411184,11.18,145.2,145.16,1.74719247]
[1720939411873,11.18,145.2,145.16,0.8682462]
[1720939412486,1.72184994,145.19,145.16,0.8682462]
[1720939412660,12.90184994,145.19,145.16,0.8682462]
[1720939412863,11.18,145.19,145.16,0.8682462]
[1720939413062,11.18,145.2,145.16,0.8682462]
[1720939413289,1.72199086,145.19,145.16,0.8682462]
[1720939413468,11.18,145.2,145.16,0.8682462]
[1720939414080,1.72199086,145.23,145.16,0.8682462]
[1720939414280,11.18,145.22,145.17,11.18]
[1720939414462,11.18,145.23,145.18,11.18]
[1720939414666,1.72156346,145.22,145.18,11.18]
[1720939414867,12.90156346,145.22,145.17,11.18]
[1720939415172,1.72171818,145.21,145.17,11.18]
[1720939415375,11.18,145.22,145.17,11.18]
[1720939415569,11.18,145.21,145.16,12.0482462]
[1720939417085,1.7217053,145.24,145.16,12.0482462]
[1720939417260,11.18,145.22,145.17,0.87827407]
[1720939417466,11.18,145.22,145.18,0.87826579]
[1720939418068,1.72170151,145.24,145.18,0.87826579]
[1720939418312,11.18,145.22,145.18,0.87826579]
[1720939418867,11.18,145.22,145.17,11.18]
[1720939419182,11.18,145.22,145.18,0.87795694]
[1720939419688,11.18,145.23,145.18,12.05795694]
[1720939419885,11.18,145.23,145.18,0.87795694]
[1720939420072,1.72156848,145.27,145.18,11.18]
[1720939420267,11.18,145.23,145.18,11.18]
[1720939420675,11.18,145.22,145.17,11.18]
[1720939421492,11.18,145.21,145.16,12.0482462]
[1720939422385,11.18,145.21,145.16,0.8682462]
[1720939422594,11.18,145.21,145.16,12.0482462]
[1720939422891,11.18,145.21,145.16,0.8682462]
[1720939423077,11.18,145.21,145.17,11.18]
[1720939423479,11.18,145.21,145.16,12.0482462]
[1720939423795,11.18,145.21,145.16,0.8682462]
[1720939423976,1.72170343,145.24,145.18,11.18]
[1720939424178,11.18,145.23,145.19,0.60248661]
[1720939424380,11.18,145.22,145.19,0.87793933]
[1720939424577,11.18,145.23,145.18,11.18]
[1720939424772,11.18,145.22,145.17,11.18]
[1720939424973,1.72156548,145.26,145.18,11.18]
[1720939425175,11.18,145.23,145.18,11.18]
[1720939426602,1.72156548,145.26,145.18,11.18]
[1720939426781,11.18,145.23,145.17,11.18]
[1720939427690,11.18,145.22,145.17,11.18]
[1720939428494,11.18,145.25,145.16,0.8682462]
[1720939428495,1.72160742,145.21,145.16,0.8682462]
[1720939428690,11.18,145.18,145.16,0.8682462]
[1720939429403,11.18,145.19,145.16,0.8682462]
[1720939432406,11.18,145.18,145.16,0.8682462]
[1720939433789,11.18,145.2,145.16,0.8682462]
[1720939433986,11.18,145.2,145.16,1.74712815]
[1720939435903,1.72197068,145.21,145.16,0.8682462]
[1720939436085,11.18,145.19,145.16,0.8682462]
[1720939436279,1.72195702,145.25,145.19,16.3964]
[1720939436601,1.53186081,145.29,145.2,11.18]
[1720939436909,11.18,145.26,145.2,11.18]
[1720939437199,11.18,145.26,145.21,0.87730852]
[1720939437402,12.90130264,145.25,145.21,0.87730852]
[1720939437605,11.18,145.25,145.2,11.18]
[1720939438389,11.18,145.25,145.21,0.87759268]
[1720939440282,11.18,145.25,145.2,12.05759268]
[1720939440507,11.18,145.25,145.21,0.87759206]
[1720939440916,1.7214193,145.24,145.21,0.87759206]
[1720939441597,12.9014193,145.24,145.21,0.87759206]
[1720939441781,11.18,145.24,145.21,0.87759206]
[1720939441981,11.18,145.24,145.2,0.87759455]
[1720939444081,11.18,145.24,145.19,27.5764]
[1720939444285,11.18,145.24,145.2,0.87762114]
[1720939446487,12.90148919,145.23,145.19,16.3964]
[1720939446779,11.18,145.23,145.19,16.3964]
[1720939447304,1.72152185,145.29,145.19,16.3964]
[1720939447504,11.18,145.24,145.19,27.5764]
[1720939448008,11.18,145.24,145.2,0.87778331]
[1720939448810,1.53231736,145.28,145.2,0.87778331]
[1720939449012,11.18,145.24,145.2,0.87778331]
[1720939450311,11.18,145.24,145.19,16.3964]
[1720939450511,12.90147744,145.23,145.19,16.3964]
[1720939450707,11.18,145.23,145.19,16.3964]
[1720939451487,1.7215333,145.22,145.16,3.64012139]
[1720939451692,11.18,145.19,145.16,0.8682462]
[1720939452009,11.18,145.18,145.16,0.8682462]
[1720939452310,11.18,145.19,145.16,0.8682462]
[1720939453412,11.18,145.18,145.16,0.8682462]
[1720939454714,1.7215333,145.22,145.16,1.74716143]
[1720939454889,11.18,145.19,145.16,1.74716143]
[1720939457305,11.18,145.19,145.16,0.8682462]
[1720939458130,11.18,145.18,145.16,0.8682462]
[1720939460618,11.18,145.19,145.16,0.8682462]
[1720939460844,11.18,145.19,145.16,1.74710453]
[1720939462300,11.18,145.21,145.16,12.92710453]
[1720939464202,11.18,145.21,145.16,1.74710453]
[1720939464410,1.72194896,145.24,145.16,1.74710453]
[1720939464705,11.18,145.2,145.16,1.74710453]
[1720939467123,1.72194896,145.24,145.16,0.8682462]
[1720939467124,11.18,145.19,145.16,0.8682462]
[1720939467703,1.72195077,145.18,145.16,0.8682462]
[1720939467903,60.4433,145.25,145.16,0.8682462]
[1720939467904,11.18,145.17,145.16,0.8682462]
[1720939468310,1.72231218,145.2,145.16,0.8682462]
[1720939468918,11.18,145.18,145.16,0.8682462]
[1720939471028,12.90208747,145.17,145.16,0.8682462]
[1720939471335,11.18,145.17,145.16,0.8682462]
[1720939471732,11.18,145.18,145.16,0.8682462]
[1720939471934,1.72224611,145.23,145.16,0.8682462]
[1720939472138,11.18,145.19,145.16,0.8682462]
[1720939473434,11.18,145.18,145.16,0.8682462]
[1720939475836,11.18,145.17,145.16,0.8682462]
[1720939480636,1.72224611,145.23,145.16,0.8682462]
[1720939480840,11.18,145.19,145.16,0.8682462]
[1720939482821,1.72206485,145.23,145.16,0.8682462]
[1720939483022,11.18,145.19,145.16,0.8682462]
[1720939483919,1.72206485,145.23,145.16,0.8682462]
[1720939484125,11.18,145.21,145.16,12.0482462]
[1720939484421,66.8079,145.25,145.16,0.8682462]
[1720939484422,11.18,145.17,145.16,0.8682462]
[1720939490850,11.18,145.18,145.16,0.8682462]
[1720939491045,1.72232124,145.24,145.16,0.8682462]
[1720939491046,1.7222914,145.24,145.16,0.8682462]
[1720939491258,11.18,145.19,145.16,0.8682462]
[1720939491951,1.72211182,145.18,145.16,0.8682462]
[1720939492543,1.72214299,145.17,145.16,0.8682462]
[1720939492738,11.18,145.17,145.16,0.8682462]
[1720939495855,11.18,145.18,145.16,0.8682462]
[1720939496043,1.72229182,145.17,145.16,0.8682462]
[1720939497743,11.18,145.18,145.16,0.8682462]
[1720939497744,1.72228873,145.23,145.16,0.8682462]
[1720939498057,11.18,145.2,145.16,0.8682462]
[1720939498368,1.72207935,145.19,145.16,0.8682462]
[1720939500041,1.72207695,145.22,145.16,0.8682462]
[1720939500247,11.18,145.2,145.16,0.8682462]
[1720939500437,12.90207695,145.22,145.17,11.18]
[1720939500639,1.72180507,145.24,145.18,0.87851435]
[1720939500940,1.72180507,145.24,145.19,11.18]
[1720939500941,12.90162933,145.24,145.19,11.18]
[1720939501148,12.90162933,145.24,145.19,12.05776793]
[1720939501746,1.72149806,145.23,145.17,0.87777751]
[1720939501938,12.90149806,145.23,145.18,11.18]